bitfinex-derivatives/quotes_ETHF0:USTF0_20250410
["timestamp","ask_amount","ask_price","bid_price","bid_amount"]
[1744270378469,7.5259,1592.1,1592.0,1.25663]
[1744270378771,10.7337,1592.1,1591.9,1.25669]
[1744270378969,10.7337,1592.1,1592.0,1.25663]
[1744270380165,3.2078,1592.1,1592.0,6.25663]
[1744270380371,1.6778,1592.5,1592.4,1.25631]
[1744270381273,3.2078,1592.9,1592.4,3.14079]
[1744270381571,3.21720999,1592.8,1592.7,1.25608]
[1744270381765,0.00940999,1592.8,1592.7,19.65608]
[1744270382366,8.21720999,1592.8,1592.5,0.00940999]
[1744270382663,3.2078,1592.6,1592.5,1.26563999]
[1744270382868,3.2078,1592.6,1592.5,0.00940999]
[1744270383071,8.2078,1592.6,1592.5,0.00940999]
[1744270383567,3.2078,1592.6,1592.5,1.26563999]
[1744270383967,3.2078,1592.6,1592.5,19.66563999]
[1744270384270,9.0418,1592.7,1592.5,1.26560999]
[1744270384573,1.7698,1592.6,1592.5,1.26560999]
[1744270384779,1.7698,1592.6,1592.5,0.00940999]
[1744270384969,6.7698,1592.6,1592.5,0.00940999]
[1744270385166,1.7698,1592.6,1592.5,1.26563999]
[1744270385472,1.7698,1592.6,1592.5,0.00940999]
[1744270385675,1.7698,1592.6,1592.5,1.26563999]
[1744270385875,1.7698,1592.6,1592.5,0.00940999]
[1744270386076,1.7698,1592.6,1592.5,1.26563999]
[1744270386376,6.7698,1592.6,1592.5,0.00940999]
[1744270386569,13.85995,1592.6,1592.5,0.00940999]
[1744270386771,12.6038,1592.6,1592.5,0.00940999]
[1744270387174,7.6038,1592.6,1592.5,0.00940999]
[1744270387680,7.6038,1592.6,1592.5,1.26563999]
[1744270388370,7.6038,1592.6,1592.5,0.00940999]
[1744270388571,7.6038,1592.6,1592.5,1.26563999]
[1744270389276,5.84340999,1592.8,1592.5,5.00940999]
[1744270389568,5.84340999,1592.8,1592.7,1.25608]
[1744270389766,9.05120999,1592.8,1592.5,0.00940999]
[1744270389970,3.2078,1592.6,1592.5,0.00940999]
[1744270390273,3.2078,1592.6,1592.5,1.26563999]
[1744270390466,0.00940999,1592.8,1592.7,1.25608]
[1744270390672,0.00940999,1592.8,1592.7,4.46388]
[1744270390873,0.00940999,1592.8,1592.7,6.25608]
[1744270391879,9.0418,1593.2,1593.1,1.25576]
[1744270392070,3.2078,1593.2,1593.1,1.25576]
[1744270392270,3.2078,1593.4,1593.1,6.25576]
[1744270392466,9.0418,1593.7,1593.2,8.01029]
[1744270392672,9.0418,1593.7,1593.5,1.2554]
[1744270392873,9.71072169,1593.8,1593.7,1.25529]
[1744270393081,9.72013168,1593.8,1593.7,1.25529]
[1744270393472,9.72013168,1593.8,1593.7,42.05529]
[1744270394374,9.72013168,1593.8,1593.7,40.8]
[1744270394573,19.18314168,1593.8,1593.4,11.53140999]
[1744270394773,3.2078,1593.6,1593.4,11.53140999]
[1744270394976,3.2078,1593.6,1593.5,40.8]
[1744270395276,14.0418,1593.6,1593.4,0.00940999]
[1744270395680,9.0418,1593.6,1593.4,0.00940999]
[1744270395872,14.0418,1593.6,1593.4,0.00940999]
[1744270396069,10.97541168,1593.8,1593.4,0.00940999]
[1744270396070,9.0418,1593.7,1593.4,0.00940999]
[1744270396278,3.2078,1593.5,1593.4,0.00940999]
[1744270396584,3.2078,1593.6,1593.4,1.26492999]
[1744270397074,3.2078,1593.6,1593.5,1.25545]
[1744270397280,5.834,1593.7,1593.6,1.25537]
[1744270397577,12.08932,1593.7,1593.5,8.3164]
[1744270397884,9.0418,1593.6,1593.5,8.3164]
[1744270398279,5.834,1593.6,1593.5,9.57185]
[1744270398477,9.0418,1593.6,1593.5,8.3164]
[1744270399083,5.834,1593.6,1593.5,9.57185]
[1744270399379,9.0418,1593.6,1593.5,8.3164]
[1744270400081,1.48355,1593.5,1593.4,0.00940999]
[1744270400581,8.11815,1593.5,1593.4,0.00940999]
[1744270402286,3.11815,1593.5,1593.4,0.00940999]
[1744270402585,6.0621,1593.5,1593.4,1.26492999]
[1744270402785,6.0621,1593.5,1593.4,0.00940999]
[1744270402987,7.31755,1593.5,1593.4,0.00940999]
[1744270403177,6.0621,1593.5,1593.4,0.00940999]
[1744270403383,6.0621,1593.5,1593.4,1.26492999]
[1744270404078,0.2281,1593.5,1593.4,6.26492999]
[1744270404682,0.2281,1593.5,1593.4,9.47272999]
[1744270405088,0.2281,1593.5,1593.4,20.66972999]
[1744270405283,0.00940999,1593.8,1593.7,1.25529]
[1744270405790,0.00940999,1593.8,1593.7,6.25529]
[1744270406181,0.00940999,1593.8,1593.4,0.00940999]
[1744270406382,3.2078,1593.7,1593.6,1.25537]
[1744270406585,3.2078,1593.7,1593.4,2.91129999]
[1744270406784,3.2078,1593.5,1593.4,1.65580999]
[1744270406990,1.6279,1593.7,1593.5,1.2554]
[1744270407191,1.6279,1593.7,1593.4,0.00940999]
[1744270407482,4.46325,1593.5,1593.4,0.00940999]
[1744270407685,10.29725,1593.5,1593.4,0.00940999]
[1744270407881,1.25568,1593.2,1593.1,3.2078]
[1744270408082,7.08968,1593.2,1593.1,3.2078]
[1744270408391,12.08968,1593.2,1593.1,3.2078]
[1744270408580,5.834,1593.2,1593.1,3.2078]
[1744270408895,3.2078,1593.5,1593.4,1.25552]
[1744270409075,3.2078,1593.5,1593.1,8.2078]
[1744270409076,3.2078,1593.5,1593.1,3.2078]
[1744270409281,5.834,1593.4,1593.1,3.2078]
[1744270409483,1.6395,1593.3,1593.1,3.2078]
[1744270409786,5.834,1593.2,1593.1,3.2078]
[1744270410091,3.2078,1593.2,1593.1,1.25576]
[1744270410289,9.46351,1593.2,1593.0,0.00940999]
[1744270410588,7.4735,1593.1,1593.0,0.00940999]
[1744270411085,3.2078,1592.9,1592.3,23.39519638]
[1744270411286,4.46395,1592.6,1592.5,11.25085869]
[1744270411586,3.2078,1592.6,1592.5,11.25085869]
[1744270412479,9.46395,1592.6,1592.5,11.25085869]
[1744270412683,9.46401,1592.6,1592.3,6.27262164]
[1744270412881,3.2078,1592.4,1592.3,6.27262164]
[1744270413091,4.46413,1592.4,1592.1,1.25654]
[1744270413387,3.2078,1592.2,1592.1,1.25654]
[1744270413690,3.2078,1592.2,1592.0,1.7234]
[1744270413895,3.2078,1592.2,1592.1,1.25655]
[1744270414077,3.2078,1592.2,1592.0,1.7234]
[1744270414283,4.46433,1592.2,1591.6,40.8]
[1744270414483,3.2078,1592.0,1591.8,1.25675]
[1744270414980,1.6379,1592.1,1591.8,1.25673]
[1744270415188,4.8457,1592.1,1591.8,1.25673]
[1744270415378,4.8457,1592.1,1591.9,1.25668]
[1744270415584,4.8457,1592.1,1591.8,1.25674]
[1744270415780,3.2078,1592.1,1592.0,1.25663]
[1744270416188,9.05120999,1592.7,1592.1,3.14138]
[1744270416485,3.21720999,1592.7,1592.6,1.25615]
[1744270416687,3.21720999,1592.7,1592.2,1.716]
[1744270416892,9.05120999,1592.7,1592.3,40.8]
[1744270417095,9.05120999,1592.7,1592.5,1.25618]
[1744270417295,9.05120999,1592.7,1592.6,2.83825]
[1744270417489,3.21720999,1592.7,1592.6,2.83825]
[1744270417689,0.00940999,1592.7,1592.6,6.04605]
[1744270417985,0.00940999,1592.7,1592.6,11.04605]
[1744270418288,3.21720999,1592.7,1592.3,40.8]
[1744270418485,3.21720999,1592.7,1591.7,3.2078]
[1744270418486,3.2078,1592.5,1591.7,3.2078]
[1744270418681,1.25651,1592.2,1592.0,1.5821]
[1744270418887,4.46422,1592.3,1592.1,40.8]
[1744270419084,4.865,1592.3,1592.1,40.8]
[1744270419484,1.25647,1592.2,1592.1,40.8]
[1744270419684,1.6572,1592.2,1592.1,40.8]
[1744270419892,3.2078,1592.3,1592.1,40.8]
[1744270420490,4.46426,1592.3,1592.1,40.8]
[1744270420686,3.2078,1592.3,1592.1,40.8]
[1744270420886,4.46419,1592.3,1592.2,1.6915]
[1744270421086,4.46424,1592.3,1592.1,40.8]
[1744270421385,1.6916,1592.2,1592.1,40.8]
[1744270422494,1.6916,1592.2,1591.3,3.3170843]
[1744270422495,12.5256,1592.2,1591.3,3.3170843]
[1744270422684,3.2078,1591.6,1591.4,1.6915]
[1744270422884,5.834,1591.5,1591.4,2.9486]
[1744270423090,5.834,1591.5,1591.4,43.7486]
[1744270423592,0.00940999,1591.7,1591.5,1.25695]
[1744270423796,3.2078,1591.6,1591.4,40.8]
[1744270424000,4.46478,1591.6,1591.4,42.4724]
[1744270424305,1.621,1591.5,1590.8,12.1824]
[1744270424592,3.2078,1591.1,1590.9,1.6724]
[1744270424796,5.834,1591.0,1590.8,40.8]
[1744270424995,3.2078,1590.9,1590.8,40.8]
[1744270425998,4.8288,1590.9,1590.8,40.8]
[1744270427087,15.6628,1590.9,1590.3,1.25795]
[1744270427289,3.2078,1590.6,1590.5,1.25781]
[1744270427799,9.05120999,1590.8,1590.5,40.8]
[1744270428000,9.05120999,1590.8,1590.6,2.90761]
[1744270428193,9.05120999,1590.8,1590.5,40.8]
[1744270428194,9.05120999,1590.8,1590.7,2.90756]
[1744270428399,9.05120999,1590.8,1590.7,1.6499]
[1744270428801,9.05120999,1590.8,1590.7,2.90756]
[1744270429001,9.05120999,1590.8,1590.7,1.6499]
[1744270429606,0.00940999,1590.8,1590.7,7.90756]
[1744270430709,9.0418,1591.3,1591.2,1.25726]
[1744270430899,3.2078,1591.3,1591.2,1.25726]
[1744270431103,3.2078,1591.8,1591.4,3.14276]
[1744270431405,3.2078,1591.8,1591.7,1.25687]
[1744270431611,3.2078,1591.8,1591.7,42.05687]
[1744270432406,3.2078,1591.8,1591.7,47.05687]
[1744270432610,0.00940999,1591.9,1591.8,1.25679]
[1744270433112,3.21720999,1591.9,1591.7,42.05683]
[1744270433409,3.21720999,1591.9,1591.7,40.8]
[1744270433909,3.21720999,1591.9,1591.8,1.729]
[1744270434111,3.21720999,1591.9,1591.8,2.98579]
[1744270434312,3.21720999,1591.9,1591.8,1.729]
[1744270434510,8.21720999,1591.9,1591.7,40.8]
[1744270434811,1.6366,1591.8,1591.7,40.8]
[1744270436017,7.89339,1591.8,1591.7,40.8]
[1744270436513,6.6366,1591.8,1591.6,0.00940999]
[1744270436714,3.2078,1591.7,1591.6,1.26631999]
[1744270436915,3.2078,1591.7,1591.6,40.80940999]
[1744270437304,3.2078,1591.7,1591.6,42.06634999]
[1744270437510,3.2078,1591.7,1591.6,40.80940999]
[1744270437817,3.2078,1591.7,1591.6,42.06634999]
[1744270439008,9.99e-06,1591.9,1591.8,1.25679]
[1744270439207,9.99e-06,1591.9,1591.8,11.17479]
[1744270439413,9.99e-06,1591.9,1591.8,16.80359]
[1744270439809,9.99e-06,1591.9,1591.8,15.14860328]
[1744270440019,9.99e-06,1591.9,1591.8,15.77659328]
[1744270441619,9.99e-06,1591.9,1591.8,16.40539328]
[1744270442418,9.0418,1592.5,1592.4,1.25631]
[1744270442619,3.2078,1592.5,1591.9,8.68172]
[1744270442917,3.2078,1592.3,1592.2,1.25643]
[1744270443116,3.2078,1592.5,1592.4,1.25631]
[1744270444015,3.2078,1592.5,1592.3,0.00940999]
[1744270444211,3.2078,1592.5,1592.4,1.25631]
[1744270444413,0.00940999,1592.6,1592.5,1.25623]
[1744270444610,3.21720999,1592.6,1592.5,1.25623]
[1744270444810,3.21720999,1592.6,1592.5,42.05623]
[1744270445316,3.21720999,1592.6,1592.5,40.8]
[1744270445523,8.21720999,1592.6,1592.5,40.8]
[1744270445822,1.25631,1592.4,1592.3,0.00940999]
[1744270446020,10.29811,1592.4,1592.3,0.00940999]
[1744270446220,14.0418,1592.4,1592.3,0.00940999]
[1744270446722,17.65331,1592.4,1592.3,0.00940999]
[1744270446917,16.397,1592.4,1592.3,0.00940999]
[1744270447124,8.96563001,1592.3,1591.6,1.25689]
[1744270447321,3.2078,1591.9,1591.7,1.25686]
[1744270447522,5.82459001,1591.8,1591.7,1.25686]
[1744270448021,5.82459001,1591.8,1591.7,47.05686]
[1744270448222,5.82459001,1591.8,1591.7,42.05686]
[1744270449522,5.82459001,1591.8,1591.7,42.05687]
[1744270449826,5.82459001,1592.3,1592.2,1.25647]
[1744270450529,5.82459001,1592.3,1592.0,9.617]
[1744270450726,5.82459001,1592.3,1592.1,1.25651]
[1744270450923,5.82459001,1592.3,1592.1,1.25649]
[1744270451126,3.2078,1592.2,1591.7,139.71717]
[1744270451329,3.2078,1592.2,1592.0,1.2566]
[1744270451626,3.2078,1592.2,1591.7,139.71717]
[1744270452025,4.46427,1592.2,1591.8,1.25674]
[1744270452323,3.2078,1591.9,1591.7,97.03183]
[1744270452527,1.25682,1591.8,1591.6,0.00940999]
[1744270452729,3.2078,1591.7,1591.6,0.00940999]
[1744270453425,4.46467,1591.7,1591.6,0.00940999]
[1744270453632,11.73127,1591.7,1591.6,0.00940999]
[1744270454225,17.55586001,1591.7,1591.6,0.00940999]
[1744270454529,3.14242,1591.6,1590.8,2.2979]
[1744270454730,3.2078,1590.9,1590.8,1.25752]
[1744270454932,1.25724,1591.3,1590.8,1.25752]
[1744270454933,3.2078,1591.1,1590.8,44.0078]
[1744270455226,3.2078,1591.3,1591.2,1.25726]
[1744270455428,5.82459001,1591.4,1591.3,1.25718]
[1744270455628,9.03239001,1591.6,1591.5,1.25702]
[1744270455836,5.82459001,1591.6,1591.5,1.25702]
[1744270456128,0.00940999,1591.7,1591.3,6.35073]
[1744270456332,0.00940999,1591.7,1591.3,3.14296]
[1744270456634,0.00940999,1591.7,1591.6,1.25694]
[1744270457037,0.00940999,1591.7,1591.6,6.25694]
[1744270457727,0.00940999,1591.7,1591.6,1.25694]
[1744270457932,0.00940999,1591.7,1591.5,1.257]
[1744270458133,0.00940999,1591.7,1591.6,3.53774]
[1744270458635,0.00940999,1591.7,1591.6,8.53774]
[1744270458839,0.00940999,1591.7,1591.6,3.53774]
[1744270459230,0.00940999,1591.7,1591.6,44.33774]
[1744270459630,0.00940999,1591.7,1591.6,49.33774]
[1744270460137,0.00940999,1591.7,1591.6,52.54554]
[1744270461536,0.00940999,1591.7,1591.6,44.33774]
[1744270461927,0.00940999,1591.7,1591.6,49.33774]
[1744270462132,0.00940999,1591.7,1591.6,52.54554]
[1744270465046,0.00940999,1591.7,1591.6,47.54554]
[1744270465346,0.00940999,1591.7,1591.6,44.33774]
[1744270465641,1.25738,1591.1,1590.8,14.56189833]
[1744270465839,3.2078,1590.9,1590.8,14.56189833]
[1744270466241,1.25766,1590.7,1590.6,19.43865012]
[1744270466440,3.2078,1590.7,1590.6,19.43865012]
[1744270466646,14.03239001,1590.7,1590.6,19.43865012]
[1744270466842,9.03239001,1590.7,1590.6,19.43865012]
[1744270467531,9.03239001,1590.7,1590.6,20.69638012]
[1744270467736,3.14578,1589.9,1589.3,30.50236463]
[1744270468037,3.2078,1588.4,1587.0,3.2078]
[1744270468235,1.26019,1587.5,1587.4,18.88095594]
[1744270468436,12.2058,1587.5,1587.1,45.91056841]
[1744270468635,18.03039001,1587.5,1587.1,45.91056841]
[1744270468941,1.26034,1587.4,1587.1,45.5366071]
[1744270469246,3.2078,1587.4,1587.1,45.5366071]
[1744270469547,5.82459001,1588.0,1587.4,7.89756033]
[1744270469734,3.2078,1588.2,1587.8,7.89756033]
[1744270469934,3.2078,1589.1,1588.1,7.89756033]
[1744270470142,3.2078,1589.2,1588.6,7.89756033]
[1744270470342,3.2078,1586.5,1585.9,31.94901504]
[1744270470544,3.2078,1585.3,1584.1,3.2078]
[1744270470836,3.2078,1584.6,1584.5,109.9059731]
[1744270471039,0.46804436,1585.2,1584.5,109.9059731]
[1744270471040,3.2078,1585.1,1584.7,0.00944048]
[1744270471341,3.67584436,1585.2,1584.8,25.30436607]
[1744270471543,3.67584436,1585.2,1585.0,1.2621]
[1744270471544,0.00944048,1585.1,1585.0,1.2621]
[1744270471736,0.46804436,1585.2,1585.0,3.2078]
[1744270472045,3.2078,1585.1,1584.8,3.2078]
[1744270472234,3.2078,1585.9,1585.3,12.6056]
[1744270472435,3.2078,1586.1,1585.3,12.6056]
[1744270472657,3.2078,1585.9,1585.5,12.6056]
[1744270472849,3.2078,1585.6,1584.6,40.8]
[1744270473144,3.2078,1584.7,1583.8,12.6056]
[1744270473338,3.2078,1584.7,1584.4,12.6056]
[1744270473537,3.2078,1585.7,1584.9,12.6056]
[1744270473743,3.26199416,1586.7,1584.9,12.6056]
[1744270473744,3.2078,1586.4,1585.5,12.6056]
[1744270473949,0.00944048,1585.5,1585.0,12.6056]
[1744270474245,0.00944048,1585.5,1585.4,3.2078]
[1744270474442,137.90108298,1585.8,1585.4,3.2078]
[1744270474443,86.72494821,1585.8,1585.7,12.6056]
[1744270474645,68.78534869,1585.8,1585.7,3.2078]
[1744270474850,68.78534869,1585.8,1585.7,30.1866]
[1744270475043,68.78534869,1585.8,1585.7,3.2078]
[1744270475343,68.78534869,1585.8,1585.5,40.8]
[1744270475547,68.78534869,1585.8,1585.6,2.3949]
[1744270475739,68.78534869,1585.8,1585.7,25.1866]
[1744270475945,3.2078,1587.4,1585.9,3.2078]
[1744270476135,3.2078,1586.0,1585.3,3.2078]
[1744270476336,27.09379053,1587.3,1585.3,2.3949]
[1744270476337,7.02062973,1587.0,1585.3,2.3949]
[1744270476538,3.2078,1585.4,1584.4,3.2078]
[1744270476743,3.2078,1585.6,1584.6,3.2078]
[1744270476942,3.2078,1586.1,1585.2,15.7251503]
[1744270477140,3.2078,1586.3,1585.2,20.19492982]
[1744270477443,3.2078,1586.1,1585.4,15.72514982]
[1744270477642,3.2078,1586.1,1585.6,15.72514982]
[1744270477839,89.90378675,1586.8,1586.0,9.46649648]
[1744270478035,3.2078,1586.4,1585.5,6.69826716]
[1744270478244,3.2078,1586.0,1585.5,3.2078]
[1744270478454,13.07000331,1586.7,1585.6,6.25869648]
[1744270478455,3.2078,1585.9,1585.6,6.25869648]
[1744270478643,0.00944048,1586.6,1586.0,6.25869648]
[1744270478942,0.00944048,1586.6,1586.2,6.25869648]
[1744270479251,11.44237701,1586.6,1586.5,10.72747648]
[1744270479547,14.65017701,1586.6,1585.5,6.25869648]
[1744270479842,18.11108459,1586.6,1585.4,3.27220677]
[1744270480038,14.65017701,1586.6,1586.3,6.25869648]
[1744270480241,11.44237701,1586.6,1586.1,6.25869648]
[1744270480540,11.44237701,1586.6,1585.5,96.06]
[1744270480541,3.2078,1586.3,1586.0,6.25869648]
[1744270480740,11.44237701,1586.6,1586.2,0.00944048]
[1744270480741,3.2078,1586.4,1586.2,0.00944048]
[1744270481351,3.2078,1586.4,1585.8,6.25869648]
[1744270481538,3.2078,1586.1,1585.7,6.25869648]
[1744270482036,3.2078,1586.0,1585.7,7.52027648]
[1744270482237,3.2078,1586.0,1585.8,6.25869648]
[1744270482545,3.2078,1586.0,1585.7,0.00944048]
[1744270482755,3.2078,1585.8,1585.7,0.00944048]
[1744270483044,3.2078,1586.2,1585.9,6.25869648]
[1744270483248,3.2078,1586.2,1585.8,6.25869648]
[1744270483453,3.2078,1586.1,1585.7,0.00944048]
[1744270483646,3.2078,1586.4,1586.0,6.25869648]
[1744270483848,3.2078,1586.2,1586.1,6.25869648]
[1744270484041,3.2078,1586.5,1586.3,6.25869648]
[1744270484450,3.2078,1586.5,1585.8,2.4811]
[1744270484649,3.2078,1586.0,1585.9,49.55409648]
[1744270484845,3.2078,1586.2,1586.1,6.25869648]
[1744270485051,3.2078,1586.2,1585.9,43.2954]
[1744270485244,3.2078,1586.0,1585.9,43.2954]
[1744270485649,3.21724048,1586.6,1586.1,1.26124]
[1744270485946,3.2078,1586.4,1586.3,1.26114]
[1744270486148,3.2078,1587.1,1586.8,1.26075]
[1744270486452,19.92363202,1587.5,1587.0,6.249256]
[1744270486654,16.71583202,1587.5,1587.1,2.4954]
[1744270486848,17.58570763,1587.2,1586.3,5.5346]
[1744270487047,3.2078,1586.9,1586.7,8.744656]
[1744270487350,3.21724048,1586.9,1586.7,3.75622]
[1744270487657,3.21724048,1586.9,1586.8,6.249256]
[1744270487848,14.37790763,1587.2,1586.7,10.7032]
[1744270488043,14.37790763,1587.2,1586.9,3.2078]
[1744270488247,14.37790763,1587.2,1587.0,2.3069]
[1744270488553,14.37790763,1587.2,1587.1,1.26051]
[1744270489054,14.37790763,1587.2,1587.1,6.26051]
[1744270489252,6.88990763,1587.2,1587.1,6.26051]
[1744270489952,6.88990763,1587.2,1587.0,2.3069]
[1744270490250,0.00944048,1587.3,1587.2,1.26043]
[1744270490859,4.8e-07,1587.3,1587.2,6.26043]
[1744270491053,3.2078,1588.7,1588.2,1.25963]
[1744270491354,3.2078,1588.7,1588.0,3.2078]
[1744270491547,5.5872,1588.9,1588.3,1.25952]
[1744270491755,3.2078,1588.4,1588.0,4.46757]
[1744270491952,3.2078,1588.6,1588.1,1.25968]
[1744270492250,3.2078,1588.2,1588.0,0.00944048]
[1744270492844,4.46744,1588.2,1588.0,0.00944048]
[1744270493046,3.2078,1588.2,1588.0,0.00944048]
[1744270493245,4.46744,1588.2,1588.0,0.00944048]
[1744270493442,3.2078,1588.2,1588.0,0.00944048]
[1744270493851,1.25971,1588.1,1588.0,0.00944048]
[1744270494041,2.2891,1588.1,1588.0,0.00944048]
[1744270494250,3.2078,1588.2,1588.0,0.00944048]
[1744270494446,0.00574381,1588.4,1588.0,0.00944048]
[1744270494447,0.00574381,1588.4,1588.3,1.25956]
[1744270494643,3.2078,1589.1,1588.6,1.25928]
[1744270494857,3.2078,1589.1,1588.7,2.3162]
[1744270495160,0.63671047,1589.0,1588.8,40.8]
[1744270495454,0.63671047,1588.9,1588.8,40.8]
[1744270495651,0.63671047,1588.9,1588.8,42.05916]
[1744270496253,3.2078,1589.4,1589.0,1.25899]
[1744270496449,1.2588,1589.3,1588.8,40.8]
[1744270496663,0.64131511,1589.2,1588.8,40.8]
[1744270496855,0.64131511,1589.2,1588.9,3.2078]
[1744270497057,0.64131511,1589.1,1588.9,1.25908]
[1744270497256,0.64131511,1589.1,1589.0,1.259]
[1744270497856,3.2078,1589.4,1589.0,1.259]
[1744270498056,4.46661,1589.3,1588.8,42.05912]
[1744270498259,4.46662,1589.3,1588.8,42.05915]
[1744270498457,0.60966077,1589.1,1588.8,40.8]
[1744270498658,0.60966077,1589.1,1588.8,42.05915]
[1744270498963,0.60966077,1589.0,1588.8,42.05915]
[1744270499163,0.60966077,1589.0,1588.8,42.0591]
[1744270499359,4.46688,1588.9,1588.8,40.8]
[1744270499565,3.81746077,1588.9,1588.7,0.00944048]
[1744270499763,0.60966077,1588.9,1588.7,0.00944048]
[1744270499970,3.2078,1589.0,1588.8,40.8]
[1744270500257,2.604,1589.1,1588.8,42.05913]
[1744270500460,3.2078,1589.0,1588.8,40.8]
[1744270500860,8.2078,1589.0,1588.8,40.8]
[1744270501058,1.25916,1588.8,1588.7,0.00944048]
[1744270501260,3.2078,1588.8,1588.7,0.00944048]
[1744270501660,0.60821964,1588.8,1588.7,1.26868048]
[1744270501964,3.81601964,1588.8,1588.7,0.00944048]
[1744270502163,3.81601964,1588.8,1588.7,1.25924]
[1744270502672,3.81601964,1588.8,1588.3,3.1489]
[1744270502875,3.2078,1588.6,1588.5,1.2594]
[1744270503071,3.2078,1588.6,1588.3,1.2595]
[1744270503278,5.80058,1589.2,1588.5,40.8]
[1744270503279,4.46699,1588.8,1588.5,40.8]
[1744270503475,3.21724047,1588.6,1588.5,40.8]
[1744270503964,1.25943,1588.5,1588.3,0.00944048]
[1744270504165,2.6534,1588.5,1588.3,0.00944048]
[1744270504363,0.61814824,1588.6,1588.5,1.2594]
[1744270505178,10.83403048,1588.6,1588.3,0.00944048]
[1744270505377,4.46728,1588.4,1588.3,1e-08]
[1744270505574,3.68008376,1588.4,1588.3,1e-08]
[1744270505879,3.2078,1588.4,1588.3,1e-08]
[1744270506080,3.81712265,1588.4,1588.3,1e-08]
[1744270506273,3.81712265,1588.4,1588.3,1.25956001]
[1744270506667,3.81712265,1588.4,1588.3,1e-08]
[1744270508285,10.07660265,1588.4,1588.3,1e-08]
[1744270508471,3.2078,1588.0,1586.9,5.9853]
[1744270508675,3.2078,1587.8,1587.2,2.6599]
[1744270508870,3.00888181,1587.9,1587.3,3.2078]
[1744270508871,5.7431,1587.9,1587.3,3.2078]
[1744270509072,3.81712265,1587.7,1587.2,2.6599]
[1744270509282,0.60932265,1587.7,1587.2,2.6599]
[1744270509486,0.60932265,1587.6,1587.2,2.6599]
[1744270509681,3.2078,1587.5,1587.3,0.00944048]
[1744270509979,7.00334,1587.5,1587.3,0.00944048]
[1744270510184,7.00334,1587.5,1586.5,3.2078]
[1744270510185,6.90742856,1587.4,1586.5,3.2078]
[1744270510483,2.5353,1587.3,1587.0,1.26053]
[1744270510681,2.5353,1587.3,1586.5,0.6304]
[1744270510682,11.56769001,1587.3,1586.5,0.6304]
[1744270510878,4.94183364,1587.2,1586.6,2.6599]
[1744270511079,3.00882255,1587.1,1586.6,3.92076]
[1744270511278,3.68161226,1587.0,1586.2,3.8382]
[1744270511481,3.11682265,1586.9,1586.7,1.27022048]
[1744270511684,0.00944048,1586.8,1586.7,1.27027048]
[1744270511978,0.61876313,1586.8,1586.7,1.27027048]
[1744270512882,0.61876313,1586.8,1586.7,42.07027048]
[1744270513280,0.61876313,1586.8,1586.7,47.07027048]
[1744270513475,0.61876313,1586.8,1586.7,42.07027048]
[1744270513790,0.00944048,1586.8,1586.7,47.07027048]
[1744270514187,3.2078,1587.3,1586.7,47.07027048]
[1744270514375,3.2078,1587.3,1587.1,1.26048]
[1744270514581,2.6626,1587.5,1587.0,6.35928]
[1744270514780,3.2078,1587.7,1587.0,3.2078]
[1744270514985,3.73011707,1587.6,1587.4,1.26025]
[1744270515288,1.07770743,1587.5,1587.4,1.26027]
[1744270515788,1.07770743,1587.5,1587.3,1.26033]
[1744270515984,0.601659,1587.5,1587.4,1.26027]
[1744270516392,0.601659,1587.5,1587.4,6.26027]
[1744270516688,4.8e-07,1587.5,1587.4,9.46807]
[1744270516884,5.1200017,1587.8,1587.7,1.26003]
[1744270517088,9.12354894,1588.0,1587.9,1.25987]
[1744270517281,9.12354894,1588.0,1587.9,45.26767]
[1744270517483,9.12354894,1588.0,1587.9,50.26767]
[1744270517885,5.63342894,1588.0,1587.9,50.26767]
[1744270518083,3.97713894,1588.0,1587.9,50.26767]
[1744270518282,0.00944047,1588.1,1588.0,1.25979]
[1744270518494,0.00944047,1588.1,1587.9,48.32227295]
[1744270518696,0.00944047,1588.1,1588.0,1.25979]
[1744270519093,0.00944047,1588.1,1588.0,6.25979]
[1744270519598,0.00944047,1588.1,1587.9,40.8]
[1744270519794,1.25987,1587.9,1587.8,0.00944048]
[1744270520103,9.95367765,1587.9,1586.9,3.78205]
[1744270520293,3.2078,1587.5,1587.4,1.26027]
[1744270520495,3.2078,1587.8,1587.4,1.26021]
[1744270520691,0.92163989,1587.7,1587.3,1.26031]
[1744270520992,4.12940255,1587.6,1587.1,11.844]
[1744270521192,3.2078,1587.6,1587.3,0.00944048]
[1744270521393,3.2078,1587.6,1587.4,1.26024]
[1744270521598,3.2078,1587.8,1587.5,1.26017]
[1744270521796,0.92135773,1587.7,1587.3,0.00944048]
[1744270522006,3.2078,1587.6,1587.5,1.26019]
[1744270522490,3.2078,1587.8,1587.6,1.26007]
[1744270522697,3.2078,1587.8,1587.7,1.26003]
[1744270522897,9.03239001,1588.0,1587.7,1.26003]
[1744270523100,3.20575895,1587.9,1587.6,1.26004]
[1744270523297,2.6831,1587.9,1587.7,1.25998]
[1744270523493,3.2078,1587.8,1587.7,1.25998]
[1744270523699,2.6831,1587.9,1587.8,1.25995]
[1744270524203,3.2078,1588.0,1587.9,1.25987]
[1744270524596,0.00944047,1588.1,1588.0,1.25979]
[1744270524797,2.75744047,1588.1,1588.0,1.25979]
[1744270525003,2.75744047,1588.1,1588.0,42.05979]
[1744270525195,0.00944047,1588.1,1588.0,42.05979]
[1744270527295,1e-08,1588.1,1588.0,47.05979]
[1744270527599,1e-08,1588.1,1588.0,49.76749]
[1744270529710,1e-08,1588.1,1588.0,44.76749]
[1744270530901,1e-08,1588.1,1588.0,42.05979]
[1744270531608,3.2078,1589.0,1588.4,3.14861]
[1744270531907,3.2078,1589.0,1588.5,14.3365]
[1744270531908,2.7295,1588.9,1588.5,14.3365]
[1744270532109,3.2078,1588.8,1588.7,1.25917]
[1744270532306,2.7295,1588.9,1588.8,1.25916]
[1744270534314,0.00944048,1589.0,1588.9,1.25908]
[1744270535611,0.00944048,1589.0,1588.9,42.05908]